[Event "Chessable Masters - Torneo preliminare"]
[White "Ju, Wenjun"]
[Black "Grischuk, Alexander"]
[WhiteFideId "8603006"]
[BlackFideId "4126025"]
[WhiteElo "2598"]
[BlackElo "2731"]
[Result "0-1"]
[Round "8"]
[TimeControl "600+2"]
[Date "2023.03.13"]
[WhiteClock "0:00:15"]
[BlackClock "0:00:09"]

1. d4 {[%clk 0:10:01]}  g6 {[%clk 0:10:01]} 2. Nf3 {[%clk 0:09:56]}  Bg7 {[%clk 0:10:01]} 3. g3 {[%clk 0:09:57]}  c5 {[%clk 0:10:02]} 4. c3 {[%clk 0:09:22]}  Qa5 {[%clk 0:10:00]} 5. Nbd2 {[%clk 0:09:13]}  cxd4 {[%clk 0:09:56]} 6. Nb3 {[%clk 0:08:56]}  Qb6 {[%clk 0:09:35]} 7. cxd4 {[%clk 0:08:49]}  Nf6 {[%clk 0:09:35]} 8. Bg2 {[%clk 0:08:48]}  O-O {[%clk 0:09:35]} 9. O-O {[%clk 0:08:50]}  d6 {[%clk 0:09:30]} 10. Re1 {[%clk 0:08:36]}  a5 {[%clk 0:08:26]} 11. e4 {[%clk 0:08:31]}  a4 {[%clk 0:08:23]} 12. Nbd2 {[%clk 0:08:33]}  Nc6 {[%clk 0:08:24]} 13. Nc4 {[%clk 0:08:17]}  Qb5 {[%clk 0:06:20]} 14. Na3 {[%clk 0:08:12]}  Qh5 {[%clk 0:06:20]} 15. d5 {[%clk 0:06:49]}  Nb4 {[%clk 0:05:21]} 16. Nd4 {[%clk 0:05:20]}  Qxd1 {[%clk 0:04:57]} 17. Rxd1 {[%clk 0:05:22]}  Nd7 {[%clk 0:04:37]} 18. Bg5 {[%clk 0:04:48]}  Re8 {[%clk 0:04:07]} 19. Nab5 {[%clk 0:04:25]}  Na6 {[%clk 0:04:08]} 20. Rac1 {[%clk 0:04:14]}  Ndc5 {[%clk 0:04:06]} 21. f3 {[%clk 0:03:38]}  Bd7 {[%clk 0:04:04]} 22. Bf1 {[%clk 0:03:39]}  h6 {[%clk 0:03:47]} 23. Be3 {[%clk 0:03:36]}  Rec8 {[%clk 0:03:49]} 24. a3 {[%clk 0:03:19]}  Nb3 {[%clk 0:03:34]} 25. Nxb3 {[%clk 0:02:26]}  axb3 {[%clk 0:03:36]} 26. Nd4 {[%clk 0:02:26]}  Nc5 {[%clk 0:03:30]} 27. Rd2 {[%clk 0:01:56]}  Kh7 {[%clk 0:02:03]} 28. Rc4 {[%clk 0:01:36]}  Ra4 {[%clk 0:01:45]} 29. Rxa4 {[%clk 0:01:10]}  Nxa4 {[%clk 0:01:25]} 30. Rd3 {[%clk 0:00:53]}  Nxb2 {[%clk 0:01:16]} 31. Rxb3 {[%clk 0:00:54]}  Na4 {[%clk 0:01:17]} 32. Rxb7 {[%clk 0:00:42]}  Rc3 {[%clk 0:01:12]} 33. Rxd7 {[%clk 0:00:23]}  Rxe3 {[%clk 0:01:13]} 34. Nb5 {[%clk 0:00:21]}  Bf6 {[%clk 0:00:44]} 35. Kf2 {[%clk 0:00:21]}  Rb3 {[%clk 0:00:45]} 36. Nc7 {[%clk 0:00:17]}  Nc5 {[%clk 0:00:38]} 37. Rd8 {[%clk 0:00:18]}  Rxa3 {[%clk 0:00:36]} 38. Nb5 {[%clk 0:00:18]}  Ra2+ {[%clk 0:00:32]} 39. Be2 {[%clk 0:00:19]}  g5 {[%clk 0:00:08]} 40. Ke3 {[%clk 0:00:19]}  Rb2 {[%clk 0:00:10]} 41. h3 {[%clk 0:00:17]}  Kg7 {[%clk 0:00:07]} 42. Ra8 {[%clk 0:00:17]}  h5 {[%clk 0:00:04]} 43. Ra3 {[%clk 0:00:17]}  Rb4 {[%clk 0:00:05]} 44. Ra2 {[%clk 0:00:15]}  g4 {[%clk 0:00:06]} 45. hxg4 {[%clk 0:00:15]}  hxg4 {[%clk 0:00:07]} 46. fxg4 {[%clk 0:00:13]}  Rxe4+ {[%clk 0:00:07]} 47. Kf2 {[%clk 0:00:14]}  Rb4 {[%clk 0:00:06]} 48. Nc7 {[%clk 0:00:15]}  Be5 {[%clk 0:00:05]} 49. Ra3 {[%clk 0:00:15]}  Ne4+ {[%clk 0:00:05]} 50. Kg2 {[%clk 0:00:16]}  Rb2 {[%clk 0:00:06]} 51. Kf3 {[%clk 0:00:17]}  Ng5+ {[%clk 0:00:06]} 52. Kf2 {[%clk 0:00:16]}  Bd4+ {[%clk 0:00:07]} 53. Ke1 {[%clk 0:00:17]}  Ne4 {[%clk 0:00:07]} 54. Nb5 {[%clk 0:00:16]}  Bf2+ {[%clk 0:00:06]} 55. Kd1 {[%clk 0:00:16]}  Rd2+ {[%clk 0:00:07]} 56. Kc1 {[%clk 0:00:15]}  Rxe2 {[%clk 0:00:09]} 0-1


[Site "Internet"]

[Event "Chessable Masters - Torneo preliminare"]
[White "Lobanov, Sergei"]
[Black "Esipenko, Andrey"]
[WhiteFideId "24183750"]
[BlackFideId "24175439"]
[WhiteElo "2436"]
[BlackElo "2682"]
[Result "1-0"]
[Round "8"]
[TimeControl "600+2"]
[Date "2023.03.13"]
[WhiteClock "0:00:13"]
[BlackClock "0:00:14"]

1. d4 {[%clk 0:10:01]}  Nf6 {[%clk 0:10:00]} 2. c4 {[%clk 0:10:03]}  e6 {[%clk 0:10:00]} 3. Nc3 {[%clk 0:10:04]}  Bb4 {[%clk 0:10:00]} 4. e3 {[%clk 0:10:05]}  O-O {[%clk 0:09:56]} 5. Bd3 {[%clk 0:10:06]}  d5 {[%clk 0:09:36]} 6. a3 {[%clk 0:10:03]}  dxc4 {[%clk 0:09:30]} 7. Bxc4 {[%clk 0:09:57]}  Be7 {[%clk 0:09:32]} 8. Nf3 {[%clk 0:09:55]}  c5 {[%clk 0:09:32]} 9. O-O {[%clk 0:09:51]}  a6 {[%clk 0:09:17]} 10. dxc5 {[%clk 0:09:33]}  Bxc5 {[%clk 0:09:12]} 11. Qe2 {[%clk 0:08:35]}  b5 {[%clk 0:09:09]} 12. Bd3 {[%clk 0:08:36]}  Bb7 {[%clk 0:09:11]} 13. b4 {[%clk 0:08:36]}  Bd6 {[%clk 0:08:54]} 14. Bb2 {[%clk 0:08:22]}  Nbd7 {[%clk 0:08:53]} 15. Rad1 {[%clk 0:07:48]}  Qb8 {[%clk 0:07:35]} 16. h3 {[%clk 0:07:44]}  Rc8 {[%clk 0:07:18]} 17. Bb1 {[%clk 0:06:33]}  Ne5 {[%clk 0:07:01]} 18. Nxe5 {[%clk 0:06:15]}  Bxe5 {[%clk 0:07:00]} 19. Rc1 {[%clk 0:06:13]}  Bc6 {[%clk 0:06:33]} 20. f4 {[%clk 0:04:56]}  Bd6 {[%clk 0:06:32]} 21. Rfd1 {[%clk 0:04:46]}  Be7 {[%clk 0:06:18]} 22. Qf2 {[%clk 0:03:30]}  a5 {[%clk 0:05:35]} 23. Na2 {[%clk 0:03:21]}  Nd5 {[%clk 0:03:38]} 24. bxa5 {[%clk 0:02:56]}  Rxa5 {[%clk 0:03:39]} 25. Nb4 {[%clk 0:02:51]}  Nxb4 {[%clk 0:02:28]} 26. axb4 {[%clk 0:02:52]}  Bxb4 {[%clk 0:02:28]} 27. Bxg7 {[%clk 0:02:32]}  Kxg7 {[%clk 0:02:18]} 28. Qb2+ {[%clk 0:02:32]}  Kg8 {[%clk 0:02:16]} 29. Qxb4 {[%clk 0:02:33]}  Qb6 {[%clk 0:02:11]} 30. Kh2 {[%clk 0:02:04]}  Raa8 {[%clk 0:01:54]} 31. Qe7 {[%clk 0:01:41]}  Be8 {[%clk 0:01:35]} 32. Qg5+ {[%clk 0:01:02]}  Kf8 {[%clk 0:01:36]} 33. Qh6+ {[%clk 0:01:00]}  Ke7 {[%clk 0:01:38]} 34. Qh4+ {[%clk 0:00:59]}  Kf8 {[%clk 0:01:39]} 35. Qh6+ {[%clk 0:01:00]}  Ke7 {[%clk 0:01:40]} 36. f5 {[%clk 0:00:34]}  Qb8+ {[%clk 0:01:41]} 37. Kh1 {[%clk 0:00:35]}  Qe5 {[%clk 0:01:43]} 38. fxe6 {[%clk 0:00:28]}  Qxe6 {[%clk 0:01:39]} 39. Qh4+ {[%clk 0:00:28]}  Kf8 {[%clk 0:01:37]} 40. Qxh7 {[%clk 0:00:26]}  Qf6 {[%clk 0:01:26]} 41. Qe4 {[%clk 0:00:17]}  Rxc1 {[%clk 0:01:16]} 42. Rxc1 {[%clk 0:00:19]}  Rd8 {[%clk 0:01:18]} 43. Bd3 {[%clk 0:00:19]}  Qe7 {[%clk 0:01:09]} 44. Qh7 {[%clk 0:00:17]}  Qxe3 {[%clk 0:01:08]} 45. Qh8+ {[%clk 0:00:12]}  Ke7 {[%clk 0:01:09]} 46. Qh4+ {[%clk 0:00:12]}  Kf8 {[%clk 0:01:10]} 47. Qh8+ {[%clk 0:00:11]}  Ke7 {[%clk 0:01:11]} 48. Qh4+ {[%clk 0:00:12]}  Kf8 {[%clk 0:01:08]} 49. Re1 {[%clk 0:00:11]}  Qd4 {[%clk 0:01:01]} 50. Qh6+ {[%clk 0:00:07]}  Qg7 {[%clk 0:01:00]} 51. Qe3 {[%clk 0:00:07]}  Qd4 {[%clk 0:00:44]} 52. Qh6+ {[%clk 0:00:07]}  Qg7 {[%clk 0:00:44]} 53. Qe3 {[%clk 0:00:08]}  Qf6 {[%clk 0:00:31]} 54. Bxb5 {[%clk 0:00:09]}  Bxb5 {[%clk 0:00:26]} 55. Qc5+ {[%clk 0:00:10]}  Kg7 {[%clk 0:00:25]} 56. Qxb5 {[%clk 0:00:12]}  Rd2 {[%clk 0:00:25]} 57. Qh5 {[%clk 0:00:10]}  Qg6 {[%clk 0:00:13]} 58. Qf3 {[%clk 0:00:11]}  Qf6 {[%clk 0:00:13]} 59. Qg3+ {[%clk 0:00:11]}  Qg6 {[%clk 0:00:14]} 60. Qc3+ {[%clk 0:00:13]} 1-0


[Site "Internet"]

[Event "Chessable Masters - Torneo preliminare"]
[White "Drozdowski, Kacper"]
[Black "Vasquez Schroeder, Rodrigo"]
[WhiteFideId "1136720"]
[BlackFideId "3400042"]
[WhiteElo "2472"]
[BlackElo "2589"]
[Result "1-0"]
[Round "8"]
[TimeControl "600+2"]
[Date "2023.03.13"]
[WhiteClock "0:01:49"]
[BlackClock "0:04:11"]

1. e4 {[%clk 0:10:01]}  c5 {[%clk 0:10:00]} 2. Nf3 {[%clk 0:10:02]}  d6 {[%clk 0:10:01]} 3. d4 {[%clk 0:10:03]}  cxd4 {[%clk 0:10:03]} 4. Nxd4 {[%clk 0:10:05]}  Nf6 {[%clk 0:10:03]} 5. f3 {[%clk 0:10:06]}  e6 {[%clk 0:10:02]} 6. c4 {[%clk 0:10:07]}  Be7 {[%clk 0:10:02]} 7. Nc3 {[%clk 0:10:08]}  O-O {[%clk 0:10:04]} 8. Be3 {[%clk 0:10:07]}  Nc6 {[%clk 0:10:05]} 9. Rc1 {[%clk 0:09:47]}  d5 {[%clk 0:09:47]} 10. cxd5 {[%clk 0:09:39]}  exd5 {[%clk 0:09:48]} 11. exd5 {[%clk 0:09:33]}  Nxd5 {[%clk 0:09:48]} 12. Nxd5 {[%clk 0:09:32]}  Qxd5 {[%clk 0:09:46]} 13. Nxc6 {[%clk 0:09:29]}  bxc6 {[%clk 0:09:47]} 14. Qxd5 {[%clk 0:09:27]}  cxd5 {[%clk 0:09:48]} 15. Bd3 {[%clk 0:09:13]}  Bf6 {[%clk 0:09:44]} 16. b3 {[%clk 0:09:06]}  a5 {[%clk 0:09:32]} 17. Kf2 {[%clk 0:08:54]}  Be6 {[%clk 0:09:23]} 18. Rhd1 {[%clk 0:08:50]}  a4 {[%clk 0:09:23]} 19. Bc5 {[%clk 0:08:32]}  axb3 {[%clk 0:09:21]} 20. axb3 {[%clk 0:08:27]}  Rfb8 {[%clk 0:09:02]} 21. b4 {[%clk 0:08:25]}  Ra3 {[%clk 0:08:24]} 22. b5 {[%clk 0:08:04]}  Ra2+ {[%clk 0:08:15]} 23. Kf1 {[%clk 0:08:00]}  Be5 {[%clk 0:08:12]} 24. b6 {[%clk 0:07:38]}  Bxh2 {[%clk 0:08:04]} 25. Ra1 {[%clk 0:07:37]}  Rb2 {[%clk 0:07:41]} 26. Rdb1 {[%clk 0:07:06]}  Rxb1+ {[%clk 0:07:36]} 27. Rxb1 {[%clk 0:07:05]}  Bc8 {[%clk 0:07:35]} 28. Re1 {[%clk 0:06:37]}  Be6 {[%clk 0:07:27]} 29. Ra1 {[%clk 0:06:27]}  g6 {[%clk 0:06:46]} 30. Ra7 {[%clk 0:06:23]}  Bc8 {[%clk 0:06:24]} 31. Kf2 {[%clk 0:05:53]}  Be5 {[%clk 0:06:23]} 32. Re7 {[%clk 0:05:44]}  f6 {[%clk 0:06:10]} 33. g3 {[%clk 0:04:57]}  g5 {[%clk 0:05:42]} 34. Bxh7+ {[%clk 0:04:51]}  Kh8 {[%clk 0:05:44]} 35. Bd3 {[%clk 0:03:55]}  Bb7 {[%clk 0:05:44]} 36. Bb5 {[%clk 0:03:04]}  Rc8 {[%clk 0:05:23]} 37. Be3 {[%clk 0:02:48]}  Rc2+ {[%clk 0:05:12]} 38. Kf1 {[%clk 0:02:45]}  Rb2 {[%clk 0:05:04]} 39. Rxb7 {[%clk 0:02:20]}  Rxb5 {[%clk 0:05:04]} 40. f4 {[%clk 0:02:16]}  gxf4 {[%clk 0:05:01]} 41. gxf4 {[%clk 0:02:18]}  d4 {[%clk 0:04:47]} 42. fxe5 {[%clk 0:02:17]}  dxe3 {[%clk 0:04:48]} 43. exf6 {[%clk 0:02:15]}  Kg8 {[%clk 0:04:44]} 44. Rb8+ {[%clk 0:02:04]}  Kf7 {[%clk 0:04:45]} 45. b7 {[%clk 0:02:05]}  Rb2 {[%clk 0:04:16]} 46. Ke1 {[%clk 0:01:58]}  e2 {[%clk 0:04:11]} 47. Rh8 {[%clk 0:01:49]} 1-0


[Site "Internet"]

[Event "Chessable Masters - Torneo preliminare"]
[White "Hammer, Jon Ludvig"]
[Black "Xu, Yinglun"]
[WhiteFideId "1503707"]
[BlackFideId "8604940"]
[WhiteElo "2647"]
[BlackElo "2523"]
[Result "1/2-1/2"]
[Round "8"]
[TimeControl "600+2"]
[Date "2023.03.13"]
[WhiteClock "0:00:12"]
[BlackClock "0:00:18"]

1. e4 {[%clk 0:10:01]}  c5 {[%clk 0:10:00]} 2. Nf3 {[%clk 0:10:02]}  d6 {[%clk 0:10:01]} 3. d4 {[%clk 0:09:59]}  cxd4 {[%clk 0:10:03]} 4. Nxd4 {[%clk 0:10:00]}  Nf6 {[%clk 0:10:04]} 5. Nc3 {[%clk 0:10:01]}  a6 {[%clk 0:10:06]} 6. Be2 {[%clk 0:10:02]}  e5 {[%clk 0:10:06]} 7. Nb3 {[%clk 0:10:02]}  Be7 {[%clk 0:10:07]} 8. O-O {[%clk 0:10:01]}  O-O {[%clk 0:10:02]} 9. Qd3 {[%clk 0:10:02]}  Be6 {[%clk 0:09:59]} 10. Bd2 {[%clk 0:10:02]}  Nbd7 {[%clk 0:09:57]} 11. Nd5 {[%clk 0:10:03]}  Bxd5 {[%clk 0:09:10]} 12. exd5 {[%clk 0:10:04]}  b5 {[%clk 0:08:15]} 13. a4 {[%clk 0:09:58]}  Qc7 {[%clk 0:06:03]} 14. Ba5 {[%clk 0:09:45]}  Qc8 {[%clk 0:05:43]} 15. axb5 {[%clk 0:09:44]}  axb5 {[%clk 0:05:42]} 16. c3 {[%clk 0:09:38]}  Rb8 {[%clk 0:05:19]} 17. Rfd1 {[%clk 0:06:07]}  Re8 {[%clk 0:04:48]} 18. Qh3 {[%clk 0:05:12]}  Nc5 {[%clk 0:03:51]} 19. Nxc5 {[%clk 0:05:13]}  Qxc5 {[%clk 0:03:44]} 20. Bb4 {[%clk 0:05:11]}  Qc7 {[%clk 0:02:46]} 21. Ra5 {[%clk 0:05:12]}  Rf8 {[%clk 0:02:36]} 22. Bxb5 {[%clk 0:05:05]}  g6 {[%clk 0:02:27]} 23. Bc6 {[%clk 0:04:51]}  Ne4 {[%clk 0:02:00]} 24. Qe3 {[%clk 0:04:36]}  Nc5 {[%clk 0:01:48]} 25. Rda1 {[%clk 0:04:29]}  Qd8 {[%clk 0:01:21]} 26. Ra8 {[%clk 0:04:01]}  Rxa8 {[%clk 0:01:07]} 27. Rxa8 {[%clk 0:04:01]}  Qc7 {[%clk 0:01:08]} 28. Rxf8+ {[%clk 0:03:57]}  Bxf8 {[%clk 0:01:08]} 29. h4 {[%clk 0:03:17]}  f5 {[%clk 0:01:08]} 30. Bxc5 {[%clk 0:02:42]}  dxc5 {[%clk 0:01:09]} 31. h5 {[%clk 0:02:43]}  Kg7 {[%clk 0:01:01]} 32. h6+ {[%clk 0:02:18]}  Kf7 {[%clk 0:00:58]} 33. Bb5 {[%clk 0:02:08]}  Bd6 {[%clk 0:00:54]} 34. g4 {[%clk 0:01:32]}  Qe7 {[%clk 0:00:33]} 35. gxf5 {[%clk 0:01:09]}  gxf5 {[%clk 0:00:35]} 36. Kf1 {[%clk 0:00:48]}  e4 {[%clk 0:00:35]} 37. b4 {[%clk 0:00:23]}  cxb4 {[%clk 0:00:28]} 38. cxb4 {[%clk 0:00:25]}  Qe5 {[%clk 0:00:15]} 39. Qg5 {[%clk 0:00:09]}  f4 {[%clk 0:00:09]} 40. Qxe5 {[%clk 0:00:03]}  Bxe5 {[%clk 0:00:11]} 41. Bd7 {[%clk 0:00:03]}  Kg6 {[%clk 0:00:11]} 42. b5 {[%clk 0:00:03]}  Bc7 {[%clk 0:00:11]} 43. Ke2 {[%clk 0:00:02]}  Bb6 {[%clk 0:00:05]} 44. Bh3 {[%clk 0:00:03]}  f3+ {[%clk 0:00:06]} 45. Kf1 {[%clk 0:00:03]}  Kg5 {[%clk 0:00:07]} 46. Be6 {[%clk 0:00:03]}  Kxh6 {[%clk 0:00:08]} 47. Bf5 {[%clk 0:00:04]}  e3 {[%clk 0:00:09]} 48. fxe3 {[%clk 0:00:04]}  Bxe3 {[%clk 0:00:11]} 49. Be4 {[%clk 0:00:04]}  f2 {[%clk 0:00:12]} 50. d6 {[%clk 0:00:05]}  Bb6 {[%clk 0:00:13]} 51. d7 {[%clk 0:00:06]}  Kg7 {[%clk 0:00:15]} 52. d8=Q {[%clk 0:00:06]}  Bxd8 {[%clk 0:00:15]} 53. Bxh7 {[%clk 0:00:07]}  Kxh7 {[%clk 0:00:15]} 54. Kxf2 {[%clk 0:00:08]}  Kg7 {[%clk 0:00:16]} 55. Ke2 {[%clk 0:00:10]}  Kf7 {[%clk 0:00:17]} 56. b6 {[%clk 0:00:12]}  Bxb6 {[%clk 0:00:18]} 1/2-1/2


[Site "Internet"]

[Event "Chessable Masters - Torneo preliminare"]
[White "Preotu, Razvan"]
[Black "Guseinov, Gadir"]
[WhiteFideId "2613280"]
[BlackFideId "13401378"]
[WhiteElo "2532"]
[BlackElo "2632"]
[Result "0-1"]
[Round "8"]
[TimeControl "600+2"]
[Date "2023.03.13"]
[WhiteClock "0:00:02"]
[BlackClock "0:03:35"]

1. e4 {[%clk 0:10:01]}  c5 {[%clk 0:09:58]} 2. Nf3 {[%clk 0:10:03]}  g6 {[%clk 0:10:00]} 3. d4 {[%clk 0:10:04]}  cxd4 {[%clk 0:10:01]} 4. Nxd4 {[%clk 0:10:05]}  Nc6 {[%clk 0:10:01]} 5. c4 {[%clk 0:10:06]}  Nf6 {[%clk 0:10:02]} 6. Nc3 {[%clk 0:10:06]}  Nxd4 {[%clk 0:10:03]} 7. Qxd4 {[%clk 0:10:08]}  d6 {[%clk 0:10:05]} 8. Be2 {[%clk 0:10:08]}  Bg7 {[%clk 0:10:06]} 9. O-O {[%clk 0:10:10]}  O-O {[%clk 0:10:06]} 10. Qd3 {[%clk 0:10:11]}  a5 {[%clk 0:09:59]} 11. Be3 {[%clk 0:10:02]}  Bd7 {[%clk 0:09:48]} 12. Rad1 {[%clk 0:08:46]}  Bc6 {[%clk 0:09:46]} 13. b3 {[%clk 0:07:56]}  Nd7 {[%clk 0:09:45]} 14. Qc2 {[%clk 0:07:35]}  Qc7 {[%clk 0:09:37]} 15. Qc1 {[%clk 0:07:26]}  Nc5 {[%clk 0:09:09]} 16. Nd5 {[%clk 0:07:15]}  Bxd5 {[%clk 0:09:10]} 17. exd5 {[%clk 0:07:16]}  Qb6 {[%clk 0:08:57]} 18. Qc2 {[%clk 0:06:33]}  Rfc8 {[%clk 0:08:22]} 19. h4 {[%clk 0:05:48]}  a4 {[%clk 0:08:12]} 20. Rb1 {[%clk 0:05:48]}  axb3 {[%clk 0:08:13]} 21. axb3 {[%clk 0:05:50]}  Qb4 {[%clk 0:08:13]} 22. h5 {[%clk 0:04:13]}  Qc3 {[%clk 0:08:05]} 23. Qxc3 {[%clk 0:03:37]}  Bxc3 {[%clk 0:08:07]} 24. Rfc1 {[%clk 0:03:09]}  Bg7 {[%clk 0:07:50]} 25. h6 {[%clk 0:02:56]}  Bh8 {[%clk 0:07:40]} 26. b4 {[%clk 0:02:57]}  Ne4 {[%clk 0:07:38]} 27. Bf3 {[%clk 0:02:32]}  Nc3 {[%clk 0:07:31]} 28. Rb3 {[%clk 0:02:31]}  Rxc4 {[%clk 0:07:33]} 29. Bd2 {[%clk 0:02:00]}  Rac8 {[%clk 0:06:57]} 30. Kf1 {[%clk 0:01:32]}  f5 {[%clk 0:06:49]} 31. Ra3 {[%clk 0:01:29]}  Ne4 {[%clk 0:06:45]} 32. Bxe4 {[%clk 0:01:16]}  Rxc1+ {[%clk 0:06:36]} 33. Bxc1 {[%clk 0:01:18]}  Rxc1+ {[%clk 0:06:29]} 34. Ke2 {[%clk 0:01:19]}  Kf7 {[%clk 0:06:22]} 35. Bd3 {[%clk 0:01:12]}  Bd4 {[%clk 0:06:15]} 36. Ra8 {[%clk 0:00:21]}  Rh1 {[%clk 0:06:16]} 37. Rb8 {[%clk 0:00:20]}  b6 {[%clk 0:06:17]} 38. Bb5 {[%clk 0:00:11]}  Rxh6 {[%clk 0:06:18]} 39. Bd7 {[%clk 0:00:13]}  Rh1 {[%clk 0:06:06]} 40. Be6+ {[%clk 0:00:13]}  Kg7 {[%clk 0:06:02]} 41. f4 {[%clk 0:00:02]}  Rb1 {[%clk 0:05:54]} 42. Rb7 {[%clk 0:00:02]}  Kf6 {[%clk 0:05:49]} 43. Rb8 {[%clk 0:00:04]}  Rb2+ {[%clk 0:05:20]} 44. Kd3 {[%clk 0:00:04]}  Rxb4 {[%clk 0:05:22]} 45. Rf8+ {[%clk 0:00:05]}  Kg7 {[%clk 0:05:24]} 46. Rf7+ {[%clk 0:00:07]}  Kh6 {[%clk 0:05:25]} 47. Rxe7 {[%clk 0:00:09]}  Bg7 {[%clk 0:05:27]} 48. Ke3 {[%clk 0:00:06]}  Rb3+ {[%clk 0:05:22]} 49. Ke2 {[%clk 0:00:07]}  Bd4 {[%clk 0:04:19]} 50. Rd7 {[%clk 0:00:05]}  Kh5 {[%clk 0:04:08]} 51. Rxd6 {[%clk 0:00:06]}  Kg4 {[%clk 0:04:10]} 52. Rd8 {[%clk 0:00:05]}  Kxf4 {[%clk 0:04:11]} 53. Kd2 {[%clk 0:00:03]}  Bf6 {[%clk 0:04:00]} 54. Rf8 {[%clk 0:00:03]}  Be5 {[%clk 0:03:57]} 55. d6 {[%clk 0:00:03]}  Rb2+ {[%clk 0:03:48]} 56. Kc1 {[%clk 0:00:05]}  Bxd6 {[%clk 0:03:50]} 57. Rd8 {[%clk 0:00:02]}  Be5 {[%clk 0:03:45]} 58. g3+ {[%clk 0:00:02]}  Kg5 {[%clk 0:03:36]} 59. Rd5 {[%clk 0:00:02]}  Kf6 {[%clk 0:03:35]} 0-1


[Site "Internet"]

[Event "Chessable Masters - Torneo preliminare"]
[White "Sasikiran, Krishnan"]
[Black "Fressinet, Laurent"]
[WhiteFideId "5004985"]
[BlackFideId "608742"]
[WhiteElo "2559"]
[BlackElo "2689"]
[Result "1/2-1/2"]
[Round "8"]
[TimeControl "600+2"]
[Date "2023.03.13"]
[WhiteClock "0:00:09"]
[BlackClock "0:00:10"]

1. e4 {[%clk 0:10:01]}  e5 {[%clk 0:09:59]} 2. Nf3 {[%clk 0:09:59]}  Nc6 {[%clk 0:10:00]} 3. Bb5 {[%clk 0:10:00]}  a6 {[%clk 0:10:01]} 4. Ba4 {[%clk 0:10:02]}  Nf6 {[%clk 0:10:02]} 5. O-O {[%clk 0:10:03]}  Bc5 {[%clk 0:10:03]} 6. c3 {[%clk 0:09:31]}  O-O {[%clk 0:10:00]} 7. d4 {[%clk 0:09:01]}  Ba7 {[%clk 0:09:58]} 8. Re1 {[%clk 0:08:53]}  d6 {[%clk 0:09:48]} 9. Bxc6 {[%clk 0:08:15]}  bxc6 {[%clk 0:09:48]} 10. Bg5 {[%clk 0:08:16]}  h6 {[%clk 0:09:36]} 11. Bh4 {[%clk 0:08:10]}  exd4 {[%clk 0:09:06]} 12. Nxd4 {[%clk 0:07:22]}  Bd7 {[%clk 0:09:02]} 13. Nd2 {[%clk 0:06:57]}  Re8 {[%clk 0:08:54]} 14. b3 {[%clk 0:05:20]}  g5 {[%clk 0:06:54]} 15. Bg3 {[%clk 0:05:20]}  c5 {[%clk 0:06:50]} 16. N4f3 {[%clk 0:05:10]}  Bc6 {[%clk 0:06:17]} 17. Qc2 {[%clk 0:04:37]}  Nh5 {[%clk 0:05:53]} 18. Nc4 {[%clk 0:04:25]}  Nxg3 {[%clk 0:04:46]} 19. hxg3 {[%clk 0:04:21]}  Qe7 {[%clk 0:04:46]} 20. Nfd2 {[%clk 0:03:52]}  Bd7 {[%clk 0:04:32]} 21. Re3 {[%clk 0:03:21]}  Be6 {[%clk 0:04:20]} 22. Rae1 {[%clk 0:03:15]}  c6 {[%clk 0:03:44]} 23. e5 {[%clk 0:02:27]}  d5 {[%clk 0:03:41]} 24. Nd6 {[%clk 0:02:24]}  Rf8 {[%clk 0:03:25]} 25. c4 {[%clk 0:02:10]}  Bb8 {[%clk 0:03:03]} 26. cxd5 {[%clk 0:01:56]}  cxd5 {[%clk 0:02:59]} 27. Nf3 {[%clk 0:01:57]}  d4 {[%clk 0:02:40]} 28. R3e2 {[%clk 0:01:48]}  Ba7 {[%clk 0:02:25]} 29. Nd2 {[%clk 0:01:40]}  Bg4 {[%clk 0:01:53]} 30. Re4 {[%clk 0:01:22]}  Bh5 {[%clk 0:01:53]} 31. f4 {[%clk 0:01:07]}  Rad8 {[%clk 0:01:16]} 32. N2c4 {[%clk 0:01:03]}  f5 {[%clk 0:01:02]} 33. exf6 {[%clk 0:01:00]}  Qxf6 {[%clk 0:01:03]} 34. Re6 {[%clk 0:01:01]}  Qh8 {[%clk 0:00:42]} 35. R1e5 {[%clk 0:00:45]}  Bf7 {[%clk 0:00:30]} 36. Nxf7 {[%clk 0:00:29]}  Rxf7 {[%clk 0:00:32]} 37. Re8+ {[%clk 0:00:18]}  Rxe8 {[%clk 0:00:26]} 38. Rxe8+ {[%clk 0:00:18]}  Rf8 {[%clk 0:00:28]} 39. Rxf8+ {[%clk 0:00:13]}  Kxf8 {[%clk 0:00:27]} 40. Qf5+ {[%clk 0:00:15]}  Kg8 {[%clk 0:00:26]} 41. Qe6+ {[%clk 0:00:09]}  Kh7 {[%clk 0:00:26]} 42. f5 {[%clk 0:00:09]}  d3 {[%clk 0:00:16]} 43. f6 {[%clk 0:00:10]}  Qg8 {[%clk 0:00:07]} 44. Qd7+ {[%clk 0:00:11]}  Kg6 {[%clk 0:00:07]} 45. Qxd3+ {[%clk 0:00:09]}  Kxf6 {[%clk 0:00:08]} 46. Qf3+ {[%clk 0:00:10]}  Kg6 {[%clk 0:00:06]} 47. Qe4+ {[%clk 0:00:10]}  Kg7 {[%clk 0:00:05]} 48. Qb7+ {[%clk 0:00:11]}  Qf7 {[%clk 0:00:05]} 49. Qxa6 {[%clk 0:00:11]}  Bb8 {[%clk 0:00:04]} 50. Qc6 {[%clk 0:00:07]}  Bxg3 {[%clk 0:00:04]} 51. Qxc5 {[%clk 0:00:08]}  Qf4 {[%clk 0:00:04]} 52. Qe7+ {[%clk 0:00:07]}  Kg6 {[%clk 0:00:05]} 53. Qe3 {[%clk 0:00:06]}  Qh4 {[%clk 0:00:04]} 54. Qd3+ {[%clk 0:00:05]}  Kg7 {[%clk 0:00:05]} 55. Qd7+ {[%clk 0:00:06]}  Kg6 {[%clk 0:00:05]} 56. Qe6+ {[%clk 0:00:07]}  Kg7 {[%clk 0:00:06]} 57. Qe7+ {[%clk 0:00:06]}  Kg8 {[%clk 0:00:06]} 58. Qe8+ {[%clk 0:00:05]}  Kg7 {[%clk 0:00:08]} 59. Qe7+ {[%clk 0:00:06]}  Kg8 {[%clk 0:00:09]} 60. Qe8+ {[%clk 0:00:07]}  Kg7 {[%clk 0:00:10]} 61. Qe7+ {[%clk 0:00:09]} 1/2-1/2


[Site "Internet"]

[Event "Chessable Masters - Torneo preliminare"]
[White "Tregubov, Pavel V."]
[Black "Tan, Zhongyi"]
[WhiteFideId "4115341"]
[BlackFideId "8603642"]
[WhiteElo "2522"]
[BlackElo "2517"]
[Result "1/2-1/2"]
[Round "8"]
[TimeControl "600+2"]
[Date "2023.03.13"]
[WhiteClock "0:06:11"]
[BlackClock "0:07:49"]

1. e4 {[%clk 0:10:01]}  c5 {[%clk 0:10:00]} 2. Nf3 {[%clk 0:10:02]}  d6 {[%clk 0:10:01]} 3. Bb5+ {[%clk 0:10:01]}  Bd7 {[%clk 0:10:01]} 4. Bxd7+ {[%clk 0:09:56]}  Qxd7 {[%clk 0:10:03]} 5. O-O {[%clk 0:09:52]}  Nc6 {[%clk 0:10:02]} 6. c3 {[%clk 0:09:48]}  Nf6 {[%clk 0:10:03]} 7. Re1 {[%clk 0:09:49]}  e6 {[%clk 0:10:04]} 8. d4 {[%clk 0:09:49]}  cxd4 {[%clk 0:10:06]} 9. cxd4 {[%clk 0:09:50]}  d5 {[%clk 0:10:08]} 10. e5 {[%clk 0:09:45]}  Ne4 {[%clk 0:10:08]} 11. Nbd2 {[%clk 0:09:29]}  Nxd2 {[%clk 0:10:09]} 12. Bxd2 {[%clk 0:09:30]}  Bb4 {[%clk 0:10:09]} 13. Bxb4 {[%clk 0:09:22]}  Nxb4 {[%clk 0:10:11]} 14. Qd2 {[%clk 0:09:13]}  a5 {[%clk 0:10:11]} 15. a3 {[%clk 0:09:06]}  Nc6 {[%clk 0:10:11]} 16. b3 {[%clk 0:09:07]}  O-O {[%clk 0:10:11]} 17. Qd3 {[%clk 0:09:07]}  h6 {[%clk 0:10:02]} 18. Rec1 {[%clk 0:09:06]}  Rfc8 {[%clk 0:10:01]} 19. Rc3 {[%clk 0:08:11]}  Na7 {[%clk 0:09:48]} 20. a4 {[%clk 0:07:30]}  Rc6 {[%clk 0:09:09]} 21. Rac1 {[%clk 0:07:16]}  Rac8 {[%clk 0:09:09]} 22. h4 {[%clk 0:07:05]}  Rxc3 {[%clk 0:07:48]} 23. Rxc3 {[%clk 0:07:05]}  Rxc3 {[%clk 0:07:50]} 24. Qxc3 {[%clk 0:07:07]}  b6 {[%clk 0:07:51]} 25. g3 {[%clk 0:06:46]}  Nc6 {[%clk 0:07:50]} 26. Ne1 {[%clk 0:06:10]}  Nb4 {[%clk 0:07:49]} 27. Nc2 {[%clk 0:06:10]}  Nxc2 {[%clk 0:07:49]} 28. Qxc2 {[%clk 0:06:11]} 1/2-1/2


[Site "Internet"]